[Event "EYCC Girls-U16 2019"]
[Site "Bratislava"]
[Date "2019.08.06"]
[Round "5.16"]
[White "Zarebska, Lena"]
[Black "Laurincova, Kristyna"]
[Result "0-1"]
[ECO "B50"]
[WhiteElo "1773"]
[BlackElo "1981"]
[Annotator "NA"]
[PlyCount "68"]
[EventDate "2019.08.02"]
[EventType "swiss"]
[EventCountry "SVK"]
[SourceTitle "playchess.com"]
[Source "ChessBase"]
[SourceQuality "1"]
[TimeControl "40/5400+30:1800+30"]

1. e4 {[%emt 0:00:00]} c5 {[%emt 0:00:00]} 2. Nf3 {[%emt 0:00:00]} d6 {[%emt 0:00:00]} 3. c4 {[%emt 0:00:00]} Nc6 {[%emt 0:06:23]} 4. Nc3 {[%emt 0:00:06]} Nf6 {[%emt 0:05:14]} 5. Be2 {[%emt 0:02:25]} e6 {[%emt 0:02:32]} 6. d4 {[%emt 0:04:47]} cxd4 {[%emt 0:02:13]} 7. Nxd4 {[%emt 0:00:06]} Be7 {[%emt 0:01:37]} 8. O-O {[%emt 0:00:21]} O-O {[%emt 0:00:42]} 9. Nc2 {[%emt 0:02:04]} a6 {[%emt 0:03:15]} 10. Be3 {[%emt 0:00:19]} Qa5 {[%emt 0:03:38]} 11. f4 {[%emt 0:06:41]} Rd8 {[%emt 0:02:13]} 12. a3 {[%emt 0:01:50]} d5 {[%emt 0:12:09]} 13. b4 {[%emt 0:04:18]} Qc7 {[%emt 0:00:05]} 14. e5 {[%emt 0:06:45]} dxc4 {[%emt 0:04:07]} 15. Qe1 {[%emt 0:01:09]} Nd7 {[%emt 0:04:22]} 16. Qf2 {[%emt 0:03:31]} b5 {[%emt 0:03:18]} 17. Rad1 {[%emt 0:01:30]} Rb8 {[%emt 0:00:43]} 18. Ne4 {[%emt 0:02:26]} Nb6 {[%emt 0:02:35]} 19. f5 {[%emt 0:07:04]} exf5 {[%emt 0:32:43]} 20. Nf6+ {[%emt 0:24:43]} gxf6 {[%emt 0:00:33]} 21. Qg3+ {[%emt 0:03:25]} Kh8 {[%emt 0:00:06]} 22. Rxd8+ {[%emt 0:00:38]} Qxd8 {[%emt 0:00:02]} 23. Rd1 {[%emt 0:05:52]} Qg8 {[%emt 0:00:01]} 24. Qf2 {[%emt 0:02:29]} Nd7 {[%emt 0:01:23]} 25. exf6 {[%emt 0:00:46]} Nxf6 {[%emt 0:01:07]} 26. Nd4 {[%emt 0:01:52]} Ne4 {[%emt 0:05:22]} 27. Qf4 {[%emt 0:00:30]} Bg5 {[%emt 0:01:37]} 28. Qf3 {[%emt 0:00:12]} Ne5 {[%emt 0:00:54]} 29. Qh3 {[%emt 0:00:52]} f4 {[%emt 0:01:28]} 30. Nf5 {[%emt 0:00:03]} fxe3 {[%emt 0:00:33]} 31. Rd5 {[%emt 0:00:11]} Nc3 {[%emt 0:01:10]} 32. Rxe5 {[%emt 0:00:25]} Nxe2+ {[%emt 0:00:05]} 33. Kf1 {[%emt 0:00:10]} Nd4 {[%emt 0:01:07]} 34. Qh5 {[%emt 0:00:50]} Bxf5 {[%emt 0:00:25]} 0-1

[Event "EYCC Girls-U16 2019"]
[Site "Bratislava"]
[Date "2019.08.06"]
[Round "5.17"]
[White "Gombocz, Zsofia"]
[Black "Yedigaryan, Asya"]
[Result "1/2-1/2"]
[ECO "C03"]
[WhiteElo "1981"]
[BlackElo "1583"]
[Annotator "NA"]
[PlyCount "59"]
[EventDate "2019.08.02"]
[EventType "swiss"]
[EventCountry "SVK"]
[SourceTitle "playchess.com"]
[Source "ChessBase"]
[SourceQuality "1"]
[TimeControl "40/5400+30:1800+30"]

1. e4 {[%emt 0:00:00]} e6 {[%emt 0:00:00]} 2. d4 {[%emt 0:00:00]} d5 {[%emt 0:00:00]} 3. Nd2 {[%emt 0:00:00]} h6 {[%emt 0:00:00]} 4. Ngf3 {[%emt 0:01:37]} Nf6 {[%emt 0:00:00]} 5. e5 {[%emt 0:00:28]} Nfd7 {[%emt 0:00:05]} 6. c4 {[%emt 0:02:47]} dxc4 {[%emt 0:13:13]} 7. Nxc4 {[%emt 0:02:20]} Nb6 {[%emt 0:00:57]} 8. Nxb6 {[%emt 0:02:05]} axb6 {[%emt 0:00:11]} 9. Bd3 {[%emt 0:05:26]} Nc6 {[%emt 0:11:29]} 10. O-O {[%emt 0:04:56]} Be7 {[%emt 0:02:39]} 11. h3 {[%emt 0:09:37]} h5 {[%emt 0:04:03]} 12. Be3 {[%emt 0:04:09]} Nb4 {[%emt 0:06:53]} 13. Be4 {[%emt 0:04:17]} Nd5 {[%emt 0:02:29]} 14. Nh2 {[%emt 0:13:01]} Bd7 {[%emt 0:09:54]} 15. Qf3 {[%emt 0:04:22]} Bc6 {[%emt 0:00:57]} 16. Qg3 {[%emt 0:05:23]} g6 {[%emt 0:06:22]} 17. Nf3 {[%emt 0:07:14]} Rg8 {[%emt 0:04:49]} 18. h4 {[%emt 0:03:13]} Qd7 {[%emt 0:04:40]} 19. Ng5 {[%emt 0:02:35]} Bxg5 {[%emt 0:06:25]} 20. Bxg5 {[%emt 0:00:59]} Ne7 {[%emt 0:01:10]} 21. Qe3 {[%emt 0:02:47]} Rd8 {[%emt 0:04:04]} 22. Rfd1 {[%emt 0:03:14]} Bxe4 {[%emt 0:01:45]} 23. Qxe4 {[%emt 0:00:06]} Qd5 {[%emt 0:00:08]} 24. Qc2 {[%emt 0:05:01]} Rd7 {[%emt 0:01:47]} 25. Qa4 {[%emt 0:01:37]} Qa5 {[%emt 0:00:38]} 26. Qc4 {[%emt 0:01:37]} Qd5 {[%emt 0:01:17]} 27. Qa4 {[%emt 0:06:04]} Qa5 {[%emt 0:00:07]} 28. Qc4 {[%emt 0:02:24]} Qd5 {[%emt 0:00:56]} 29. Qa4 {[%emt 0:02:15]} Qa5 {[%emt 0:00:09]} 30. Qc4 {[%emt 0:01:28]} 1/2-1/2

[Event "EYCC Girls-U16 2019"]
[Site "Bratislava"]
[Date "2019.08.06"]
[Round "5.18"]
[White "Esadze, Tamari"]
[Black "Khachatryan, Veronika"]
[Result "1-0"]
[ECO "B32"]
[WhiteElo "1997"]
[BlackElo "1870"]
[Annotator "NA"]
[PlyCount "85"]
[EventDate "2019.08.02"]
[EventType "swiss"]
[EventCountry "SVK"]
[SourceTitle "playchess.com"]
[Source "ChessBase"]
[SourceQuality "1"]
[TimeControl "40/5400+30:1800+30"]

1. e4 {[%emt 0:00:00]} c5 {[%emt 0:00:00]} 2. Nf3 {[%emt 0:00:00]} Nc6 {[%emt 0:00:00]} 3. d4 {[%emt 0:00:00]} cxd4 {[%emt 0:00:00]} 4. Nxd4 {[%emt 0:00:00]} e5 {[%emt 0:00:00]} 5. Nb5 {[%emt 0:00:16]} d6 {[%emt 0:00:06]} 6. N1c3 {[%emt 0:00:23]} a6 {[%emt 0:00:24]} 7. Na3 {[%emt 0:00:04]} b5 {[%emt 0:00:10]} 8. Nd5 {[%emt 0:00:05]} Nge7 {[%emt 0:00:36]} 9. c3 {[%emt 0:03:59]} Nxd5 {[%emt 0:03:04]} 10. exd5 {[%emt 0:01:39]} Ne7 {[%emt 0:01:40]} 11. c4 {[%emt 0:08:07]} g6 {[%emt 0:14:08]} 12. cxb5 {[%emt 0:06:38]} Bg7 {[%emt 0:00:15]} 13. Be2 {[%emt 0:08:13]} O-O {[%emt 0:04:10]} 14. O-O {[%emt 0:00:10]} axb5 {[%emt 0:03:46]} 15. Nxb5 {[%emt 0:01:51]} Bb7 {[%emt 0:02:10]} 16. Bc4 {[%emt 0:07:30]} f5 {[%emt 0:10:53]} 17. a4 {[%emt 0:08:17]} f4 {[%emt 0:12:57]} 18. Ra3 {[%emt 0:12:40]} Rf5 {[%emt 0:07:19]} 19. Qe2 {[%emt 0:08:13]} Bc8 {[%emt 0:08:27]} 20. Bd2 {[%emt 0:06:05]} Rh5 {[%emt 0:03:39]} 21. Bb4 {[%emt 0:04:22]} Nf5 {[%emt 0:03:56]} 22. g3 {[%emt 0:03:32]} Bf8 {[%emt 0:03:11]} 23. Bd3 {[%emt 0:03:51]} fxg3 {[%emt 0:10:47]} 24. fxg3 {[%emt 0:00:38]} Nh6 {[%emt 0:04:36]} 25. Be4 {[%emt 0:06:00]} Ng4 {[%emt 0:01:48]} 26. h4 {[%emt 0:02:13]} Bf5 {[%emt 0:03:02]} 27. Bxf5 {[%emt 0:05:21]} Qb6+ {[%emt 0:01:29]} 28. Kh1 {[%emt 0:00:17]} Rxf5 {[%emt 0:00:25]} 29. Rxf5 {[%emt 0:00:36]} gxf5 {[%emt 0:00:01]} 30. a5 {[%emt 0:00:36]} Qb7 {[%emt 0:00:55]} 31. Be1 {[%emt 0:02:56]} Qxd5+ {[%emt 0:00:32]} 32. Kg1 {[%emt 0:00:09]} Bh6 {[%emt 0:00:42]} 33. Bf2 {[%emt 0:00:26]} Nxf2 {[%emt 0:00:41]} 34. Kxf2 {[%emt 0:00:05]} Qc5+ {[%emt 0:00:29]} 35. Kg2 {[%emt 0:00:11]} Qc6+ {[%emt 0:00:35]} 36. Kh2 {[%emt 0:00:18]} Ra6 {[%emt 0:00:32]} 37. Rc3 {[%emt 0:00:27]} Qd7 {[%emt 0:00:24]} 38. Rc7 {[%emt 0:00:34]} Qe6 {[%emt 0:00:33]} 39. Nd4 {[%emt 0:00:08]} Qa2 {[%emt 0:00:33]} 40. Qxa6 {[%emt 0:00:00]} exd4 {[%emt 0:00:00]} 41. Qc8+ {[%emt 0:04:10]} Bf8 {[%emt 0:00:37]} 42. Qd7 {[%emt 0:00:48]} Qxb2+ {[%emt 0:00:15]} 43. Kh3 {[%emt 0:00:04]} 1-0

[Event "EYCC Girls-U16 2019"]
[Site "Bratislava"]
[Date "2019.08.06"]
[Round "5.19"]
[White "Adamczyk, Zuzanna"]
[Black "Siekanska, Zuzanna"]
[Result "1-0"]
[ECO "B40"]
[WhiteElo "1900"]
[BlackElo "1570"]
[Annotator "NA"]
[PlyCount "101"]
[EventDate "2019.08.02"]
[EventType "swiss"]
[EventCountry "SVK"]
[SourceTitle "playchess.com"]
[Source "ChessBase"]
[SourceQuality "1"]
[TimeControl "40/5400+30:1800+30"]

1. e4 {[%emt 0:00:00]} c5 {[%emt 0:00:00]} 2. Nf3 {[%emt 0:00:00]} e6 {[%emt 0:00:00]} 3. c4 {[%emt 0:00:00]} Nc6 {[%emt 0:00:45]} 4. Nc3 {[%emt 0:01:31]} Nf6 {[%emt 0:00:21]} 5. Be2 {[%emt 0:00:39]} b6 {[%emt 0:00:12]} 6. O-O {[%emt 0:00:47]} Bb7 {[%emt 0:00:13]} 7. d4 {[%emt 0:00:42]} cxd4 {[%emt 0:00:06]} 8. Nxd4 {[%emt 0:00:05]} Qb8 {[%emt 0:00:06]} 9. Nc2 {[%emt 0:00:56]} Nb4 {[%emt 0:04:09]} 10. a3 {[%emt 0:09:07]} Nxc2 {[%emt 0:04:27]} 11. Qxc2 {[%emt 0:00:15]} Bc5 {[%emt 0:09:25]} 12. Kh1 {[%emt 0:05:18]} Bd4 {[%emt 0:00:58]} 13. Bd3 {[%emt 0:32:43]} Qe5 {[%emt 0:07:41]} 14. Ne2 {[%emt 0:11:14]} Bc5 {[%emt 0:05:14]} 15. Bf4 {[%emt 0:02:34]} Qh5 {[%emt 0:01:01]} 16. b4 {[%emt 0:01:43]} Be7 {[%emt 0:01:50]} 17. f3 {[%emt 0:03:08]} g5 {[%emt 0:06:16]} 18. Bg3 {[%emt 0:06:12]} Qh6 {[%emt 0:03:49]} 19. e5 {[%emt 0:07:40]} Nh5 {[%emt 0:00:50]} 20. Be4 {[%emt 0:01:59]} Rb8 {[%emt 0:03:34]} 21. Rad1 {[%emt 0:02:21]} Qg7 {[%emt 0:02:08]} 22. Bxb7 {[%emt 0:01:38]} Rxb7 {[%emt 0:00:23]} 23. Qe4 {[%emt 0:00:19]} Rb8 {[%emt 0:00:30]} 24. Bf2 {[%emt 0:02:18]} f5 {[%emt 0:08:24]} 25. Qd4 {[%emt 0:00:32]} Rd8 {[%emt 0:01:07]} 26. g4 {[%emt 0:00:46]} fxg4 {[%emt 0:02:22]} 27. fxg4 {[%emt 0:00:23]} Nf4 {[%emt 0:00:45]} 28. Nxf4 {[%emt 0:00:34]} gxf4 {[%emt 0:00:33]} 29. Qxf4 {[%emt 0:00:15]} h5 {[%emt 0:04:44]} 30. Rg1 {[%emt 0:01:25]} Rf8 {[%emt 0:00:56]} 31. Qg3 {[%emt 0:03:54]} hxg4 {[%emt 0:02:14]} 32. Bd4 {[%emt 0:00:44]} Rg8 {[%emt 0:02:15]} 33. Qf4 {[%emt 0:01:09]} Qg6 {[%emt 0:05:59]} 34. Rdf1 {[%emt 0:01:28]} Rc8 {[%emt 0:04:09]} 35. Bb2 {[%emt 0:01:09]} Qh5 {[%emt 0:01:58]} 36. Bc1 {[%emt 0:01:22]} Bh4 {[%emt 0:01:29]} 37. Rg2 {[%emt 0:00:44]} Ke7 {[%emt 0:01:43]} 38. Qd4 {[%emt 0:00:19]} Rcf8 {[%emt 0:02:09]} 39. Qd6+ {[%emt 0:00:11]} Ke8 {[%emt 0:00:40]} 40. Rd1 {[%emt 0:00:00]} Rg7 {[%emt 0:00:00]} 41. c5 {[%emt 0:14:09]} Qf5 {[%emt 0:30:10]} 42. Bh6 {[%emt 0:02:50]} Rff7 {[%emt 0:01:34]} 43. Bxg7 {[%emt 0:00:35]} Rxg7 {[%emt 0:00:03]} 44. Qb8+ {[%emt 0:02:31]} Bd8 {[%emt 0:01:11]} 45. c6 {[%emt 0:02:21]} Qf3 {[%emt 0:00:37]} 46. Qd6 {[%emt 0:01:27]} g3 {[%emt 0:02:24]} 47. cxd7+ {[%emt 0:01:23]} Kf7 {[%emt 0:00:15]} 48. Qd3 {[%emt 0:01:01]} Qc6 {[%emt 0:01:07]} 49. Rf1+ {[%emt 0:00:44]} Kg8 {[%emt 0:00:32]} 50. Qf3 {[%emt 0:01:00]} Qxd7 {[%emt 0:04:02]} 51. Rxg3 {[%emt 0:00:12]} 1-0

[Event "EYCC Girls-U16 2019"]
[Site "Bratislava"]
[Date "2019.08.06"]
[Round "5.20"]
[White "Simonova, Stela"]
[Black "Ilyina, Lada"]
[Result "0-1"]
[ECO "A45"]
[WhiteElo "1677"]
[BlackElo "2048"]
[Annotator "NA"]
[PlyCount "66"]
[EventDate "2019.08.02"]
[EventType "swiss"]
[EventCountry "SVK"]
[SourceTitle "playchess.com"]
[Source "ChessBase"]
[SourceQuality "1"]
[TimeControl "40/5400+30:1800+30"]

1. d4 {[%emt 0:00:00]} Nf6 {[%emt 0:00:00]} 2. e3 {[%emt 0:00:00]} g6 {[%emt 0:00:01]} 3. Bd3 {[%emt 0:00:06]} Bg7 {[%emt 0:00:14]} 4. c3 {[%emt 0:00:18]} O-O {[%emt 0:01:11]} 5. Nd2 {[%emt 0:00:27]} d6 {[%emt 0:00:26]} 6. Ngf3 {[%emt 0:00:07]} b6 {[%emt 0:00:11]} 7. O-O {[%emt 0:00:17]} Bb7 {[%emt 0:00:04]} 8. Qe2 {[%emt 0:02:07]} a6 {[%emt 0:01:12]} 9. b3 {[%emt 0:00:32]} Nbd7 {[%emt 0:01:11]} 10. e4 {[%emt 0:02:51]} e5 {[%emt 0:02:59]} 11. dxe5 {[%emt 0:09:02]} dxe5 {[%emt 0:00:54]} 12. Bb2 {[%emt 0:00:58]} Nh5 {[%emt 0:10:39]} 13. g3 {[%emt 0:08:53]} Nc5 {[%emt 0:00:54]} 14. Bc2 {[%emt 0:04:11]} a5 {[%emt 0:05:41]} 15. Rfd1 {[%emt 0:04:07]} Qe7 {[%emt 0:04:27]} 16. Nf1 {[%emt 0:05:01]} Nf6 {[%emt 0:08:50]} 17. N1d2 {[%emt 0:07:03]} Nfd7 {[%emt 0:04:09]} 18. Ba3 {[%emt 0:10:56]} Rfd8 {[%emt 0:05:50]} 19. Qe3 {[%emt 0:02:55]} Qe8 {[%emt 0:03:21]} 20. Re1 {[%emt 0:02:45]} Bf8 {[%emt 0:02:00]} 21. Bb2 {[%emt 0:01:17]} Ne6 {[%emt 0:03:20]} 22. Rad1 {[%emt 0:03:27]} f6 {[%emt 0:05:04]} 23. Bd3 {[%emt 0:02:52]} Ndc5 {[%emt 0:05:24]} 24. Bf1 {[%emt 0:02:43]} Bc6 {[%emt 0:04:09]} 25. Kh1 {[%emt 0:08:22]} b5 {[%emt 0:02:55]} 26. c4 {[%emt 0:05:11]} b4 {[%emt 0:00:57]} 27. a3 {[%emt 0:00:58]} Rd7 {[%emt 0:01:59]} 28. axb4 {[%emt 0:02:52]} axb4 {[%emt 0:00:07]} 29. Ra1 {[%emt 0:00:31]} Rad8 {[%emt 0:00:29]} 30. Ra5 {[%emt 0:04:17]} Nd3 {[%emt 0:01:23]} 31. Rb1 {[%emt 0:02:51]} Bc5 {[%emt 0:00:47]} 32. Qe2 {[%emt 0:01:12]} Nxf2+ {[%emt 0:00:35]} 33. Kg2 {[%emt 0:00:02]} Rxd2 {[%emt 0:03:17]} 0-1

[Event "EYCC Girls-U16 2019"]
[Site "Bratislava"]
[Date "2019.08.06"]
[Round "5.21"]
[White "Vanduyfhuys, Daria"]
[Black "Korenova, Simona"]
[Result "1-0"]
[ECO "D52"]
[WhiteElo "2114"]
[BlackElo "1764"]
[Annotator "NA"]
[PlyCount "71"]
[EventDate "2019.08.02"]
[EventType "swiss"]
[EventCountry "SVK"]
[SourceTitle "playchess.com"]
[Source "ChessBase"]
[SourceQuality "1"]
[TimeControl "40/5400+30:1800+30"]

1. d4 {[%emt 0:00:00]} d5 {[%emt 0:00:00]} 2. c4 {[%emt 0:00:00]} c6 {[%emt 0:00:00]} 3. Nf3 {[%emt 0:00:00]} Nf6 {[%emt 0:00:53]} 4. Nc3 {[%emt 0:00:05]} e6 {[%emt 0:00:30]} 5. Bg5 {[%emt 0:00:08]} Nbd7 {[%emt 0:00:46]} 6. e3 {[%emt 0:00:12]} Be7 {[%emt 0:00:27]} 7. cxd5 {[%emt 0:00:21]} exd5 {[%emt 0:00:26]} 8. Bd3 {[%emt 0:00:07]} Ne4 {[%emt 0:01:21]} 9. Bxe7 {[%emt 0:02:40]} Qxe7 {[%emt 0:00:29]} 10. Qc2 {[%emt 0:01:20]} Ndf6 {[%emt 0:01:20]} 11. O-O {[%emt 0:00:13]} O-O {[%emt 0:03:24]} 12. Rab1 {[%emt 0:00:14]} Bf5 {[%emt 0:08:43]} 13. b4 {[%emt 0:02:30]} Nxc3 {[%emt 0:05:45]} 14. Qxc3 {[%emt 0:00:07]} Bxd3 {[%emt 0:01:07]} 15. Qxd3 {[%emt 0:00:07]} Ne4 {[%emt 0:03:21]} 16. b5 {[%emt 0:02:28]} Rfc8 {[%emt 0:10:44]} 17. Ne5 {[%emt 0:11:50]} c5 {[%emt 0:12:53]} 18. f3 {[%emt 0:16:40]} cxd4 {[%emt 0:11:14]} 19. exd4 {[%emt 0:20:29]} Rc3 {[%emt 0:07:45]} 20. Qe2 {[%emt 0:01:10]} Nd6 {[%emt 0:03:19]} 21. Qd2 {[%emt 0:08:17]} Rac8 {[%emt 0:04:10]} 22. Rfe1 {[%emt 0:02:01]} Qh4 {[%emt 0:04:45]} 23. Nc6 {[%emt 0:02:45]} R3xc6 {[%emt 0:07:14]} 24. bxc6 {[%emt 0:00:14]} bxc6 {[%emt 0:00:16]} 25. Qb4 {[%emt 0:05:21]} Nf5 {[%emt 0:05:00]} 26. Rbd1 {[%emt 0:00:26]} Qg5 {[%emt 0:01:23]} 27. Qd2 {[%emt 0:02:39]} Qg6 {[%emt 0:00:44]} 28. Qf4 {[%emt 0:00:44]} h6 {[%emt 0:04:02]} 29. Re5 {[%emt 0:03:13]} Nd6 {[%emt 0:00:35]} 30. Re7 {[%emt 0:02:53]} Nb5 {[%emt 0:00:10]} 31. h3 {[%emt 0:03:20]} Nc3 {[%emt 0:01:52]} 32. Rc1 {[%emt 0:01:05]} Nxa2 {[%emt 0:00:29]} 33. Ra1 {[%emt 0:00:49]} f6 {[%emt 0:00:30]} 34. Rxa2 {[%emt 0:00:40]} Qb1+ {[%emt 0:00:06]} 35. Kh2 {[%emt 0:00:03]} Qxa2 {[%emt 0:00:07]} 36. Qg4 {[%emt 0:00:02]} 1-0

[Event "EYCC Girls-U16 2019"]
[Site "Bratislava"]
[Date "2019.08.06"]
[Round "5.22"]
[White "Sleurs, Juliette"]
[Black "Eizaguerri Floris, Maria"]
[Result "1/2-1/2"]
[ECO "B40"]
[WhiteElo "1834"]
[BlackElo "2099"]
[Annotator "NA"]
[PlyCount "96"]
[EventDate "2019.08.02"]
[EventType "swiss"]
[EventCountry "SVK"]
[SourceTitle "playchess.com"]
[Source "ChessBase"]
[SourceQuality "1"]
[TimeControl "40/5400+30:1800+30"]

1. e4 {[%emt 0:00:00]} c5 {[%emt 0:00:00]} 2. Nf3 {[%emt 0:00:00]} e6 {[%emt 0:00:00]} 3. d3 {[%emt 0:00:00]} Nc6 {[%emt 0:00:01]} 4. g3 {[%emt 0:00:00]} d5 {[%emt 0:00:05]} 5. Nbd2 {[%emt 0:00:13]} Bd6 {[%emt 0:00:23]} 6. Bg2 {[%emt 0:00:08]} Nf6 {[%emt 0:00:04]} 7. O-O {[%emt 0:00:12]} O-O {[%emt 0:00:03]} 8. Re1 {[%emt 0:01:32]} Bc7 {[%emt 0:00:05]} 9. Qe2 {[%emt 0:10:12]} Rb8 {[%emt 0:00:22]} 10. Nf1 {[%emt 0:00:40]} e5 {[%emt 0:00:34]} 11. exd5 {[%emt 0:05:21]} Nxd5 {[%emt 0:01:24]} 12. Ne3 {[%emt 0:04:08]} Nb6 {[%emt 0:02:10]} 13. Nc4 {[%emt 0:07:02]} Nxc4 {[%emt 0:11:58]} 14. dxc4 {[%emt 0:00:07]} Bg4 {[%emt 0:06:12]} 15. c3 {[%emt 0:12:27]} h6 {[%emt 0:04:14]} 16. Qc2 {[%emt 0:01:29]} f5 {[%emt 0:09:25]} 17. Nh4 {[%emt 0:05:39]} e4 {[%emt 0:10:41]} 18. Ng6 {[%emt 0:03:50]} Rf6 {[%emt 0:02:14]} 19. Nf4 {[%emt 0:00:17]} Ne5 {[%emt 0:10:34]} 20. Nd5 {[%emt 0:04:27]} Rf7 {[%emt 0:01:19]} 21. Bf4 {[%emt 0:05:19]} Nd3 {[%emt 0:10:42]} 22. Bxc7 {[%emt 0:02:21]} Rxc7 {[%emt 0:00:24]} 23. Nxc7 {[%emt 0:00:43]} Nxe1 {[%emt 0:00:13]} 24. Rxe1 {[%emt 0:00:28]} Qxc7 {[%emt 0:00:03]} 25. h3 {[%emt 0:03:08]} Bh5 {[%emt 0:00:05]} 26. g4 {[%emt 0:04:16]} Bg6 {[%emt 0:05:31]} 27. gxf5 {[%emt 0:01:31]} Bxf5 {[%emt 0:00:04]} 28. Re3 {[%emt 0:06:28]} Qd7 {[%emt 0:00:59]} 29. h4 {[%emt 0:01:20]} Rd8 {[%emt 0:05:02]} 30. Bxe4 {[%emt 0:03:33]} Qd1+ {[%emt 0:00:26]} 31. Qxd1 {[%emt 0:00:33]} Rxd1+ {[%emt 0:00:06]} 32. Kg2 {[%emt 0:00:08]} Bxe4+ {[%emt 0:00:05]} 33. Rxe4 {[%emt 0:00:06]} Rd2 {[%emt 0:00:05]} 34. b4 {[%emt 0:01:04]} Rxa2 {[%emt 0:10:18]} 35. Re7 {[%emt 0:04:21]} b6 {[%emt 0:02:06]} 36. Rc7 {[%emt 0:01:08]} Rc2 {[%emt 0:04:54]} 37. bxc5 {[%emt 0:01:05]} bxc5 {[%emt 0:00:06]} 38. Rxc5 {[%emt 0:01:52]} Rxc3 {[%emt 0:00:06]} 39. Rc7 {[%emt 0:02:26]} a5 {[%emt 0:00:22]} 40. c5 {[%emt 0:00:00]} a4 {[%emt 0:00:00]} 41. Ra7 {[%emt 0:02:57]} a3 {[%emt 0:05:30]} 42. c6 {[%emt 0:00:11]} Kh7 {[%emt 0:02:50]} 43. c7 {[%emt 0:02:38]} Kg6 {[%emt 0:01:25]} 44. Rxa3 {[%emt 0:01:52]} Rxc7 {[%emt 0:00:05]} 45. Ra5 {[%emt 0:00:45]} Rc3 {[%emt 0:00:23]} 46. Rb5 {[%emt 0:00:52]} Kf6 {[%emt 0:00:14]} 47. Ra5 {[%emt 0:00:33]} Rc4 {[%emt 0:04:35]} 48. Kg3 {[%emt 0:00:54]} Rc3+ {[%emt 0:01:25]} 1/2-1/2

[Event "EYCC Girls-U16 2019"]
[Site "Bratislava"]
[Date "2019.08.06"]
[Round "5.23"]
[White "Duran, Esma Doga"]
[Black "Dejanovic, Tereza"]
[Result "0-1"]
[ECO "D35"]
[WhiteElo "2096"]
[BlackElo "1834"]
[Annotator "NA"]
[PlyCount "58"]
[EventDate "2019.08.02"]
[EventType "swiss"]
[EventCountry "SVK"]
[SourceTitle "playchess.com"]
[Source "ChessBase"]
[SourceQuality "1"]
[TimeControl "40/5400+30:1800+30"]

1. d4 {[%emt 0:00:00]} d5 {[%emt 0:00:00]} 2. c4 {[%emt 0:00:00]} e6 {[%emt 0:00:00]} 3. Nc3 {[%emt 0:00:00]} Nf6 {[%emt 0:00:00]} 4. cxd5 {[%emt 0:00:38]} exd5 {[%emt 0:00:00]} 5. Bg5 {[%emt 0:00:06]} Be7 {[%emt 0:00:16]} 6. e3 {[%emt 0:00:21]} h6 {[%emt 0:00:23]} 7. Bh4 {[%emt 0:01:08]} O-O {[%emt 0:01:19]} 8. Bd3 {[%emt 0:00:20]} b6 {[%emt 0:00:25]} 9. Nge2 {[%emt 0:03:04]} Bb7 {[%emt 0:00:11]} 10. Qc2 {[%emt 0:01:35]} c5 {[%emt 0:03:01]} 11. O-O-O {[%emt 0:03:27]} c4 {[%emt 0:04:44]} 12. Bf5 {[%emt 0:00:28]} Nc6 {[%emt 0:05:34]} 13. f3 {[%emt 0:17:24]} b5 {[%emt 0:05:45]} 14. Nxb5 {[%emt 0:16:28]} Nb4 {[%emt 0:03:19]} 15. Qb1 {[%emt 0:02:52]} Ba6 {[%emt 0:02:09]} 16. Nec3 {[%emt 0:10:13]} Rb8 {[%emt 0:24:59]} 17. a4 {[%emt 0:00:56]} Bxb5 {[%emt 0:01:55]} 18. Nxb5 {[%emt 0:12:36]} Nc6 {[%emt 0:05:08]} 19. g4 {[%emt 0:25:55]} Nxg4 {[%emt 0:15:45]} 20. Bxe7 {[%emt 0:01:14]} Qxe7 {[%emt 0:00:07]} 21. fxg4 {[%emt 0:00:31]} Qxe3+ {[%emt 0:00:11]} 22. Rd2 {[%emt 0:00:01]} a6 {[%emt 0:00:22]} 23. Kd1 {[%emt 0:01:33]} Qf3+ {[%emt 0:00:38]} 24. Kc1 {[%emt 0:00:16]} Qxh1+ 25. Rd1 Qxh2 {[%emt 0:02:22]} 26. Nc3 {[%emt 0:01:12]} Qf4+ {[%emt 0:00:45]} 27. Rd2 {[%emt 0:00:01]} Nxd4 {[%emt 0:00:55]} 28. Bc2 {[%emt 0:00:21]} Rfe8 {[%emt 0:01:22]} 29. Nxd5 {[%emt 0:00:28]} Re1+ {[%emt 0:00:10]} 0-1

[Event "EYCC Girls-U16 2019"]
[Site "Bratislava"]
[Date "2019.08.06"]
[Round "5.24"]
[White "Rzali, Sabina"]
[Black "Radikovic, Anamarija"]
[Result "1/2-1/2"]
[ECO "B92"]
[WhiteElo "1691"]
[BlackElo "2021"]
[Annotator "NA"]
[PlyCount "93"]
[EventDate "2019.08.02"]
[EventType "swiss"]
[EventCountry "SVK"]
[SourceTitle "playchess.com"]
[Source "ChessBase"]
[SourceQuality "1"]
[TimeControl "40/5400+30:1800+30"]

1. e4 {[%emt 0:00:00]} c5 {[%emt 0:00:00]} 2. Nf3 {[%emt 0:00:00]} d6 {[%emt 0:00:00]} 3. d4 {[%emt 0:00:00]} cxd4 {[%emt 0:00:00]} 4. Nxd4 {[%emt 0:00:03]} Nf6 {[%emt 0:00:00]} 5. Nc3 {[%emt 0:00:55]} a6 {[%emt 0:00:00]} 6. Be2 {[%emt 0:00:18]} e5 {[%emt 0:00:12]} 7. Nb3 {[%emt 0:00:43]} Be7 {[%emt 0:01:01]} 8. Be3 {[%emt 0:00:13]} Be6 {[%emt 0:00:23]} 9. O-O {[%emt 0:01:19]} O-O {[%emt 0:02:04]} 10. f3 {[%emt 0:05:37]} Nbd7 {[%emt 0:02:50]} 11. Qe1 {[%emt 0:01:52]} Rc8 {[%emt 0:12:48]} 12. Rd1 {[%emt 0:06:02]} b5 {[%emt 0:04:31]} 13. Bd3 {[%emt 0:05:28]} Nb6 {[%emt 0:06:02]} 14. Nd2 {[%emt 0:08:21]} Nh5 {[%emt 0:09:19]} 15. Qf2 {[%emt 0:04:21]} Nd7 {[%emt 0:10:30]} 16. Ne2 {[%emt 0:15:04]} Nc5 {[%emt 0:02:47]} 17. Bxc5 {[%emt 0:08:42]} dxc5 {[%emt 0:00:07]} 18. Kh1 {[%emt 0:13:59]} c4 {[%emt 0:09:46]} 19. Nxc4 {[%emt 0:00:36]} bxc4 {[%emt 0:00:07]} 20. Bxc4 {[%emt 0:00:06]} Bxc4 {[%emt 0:05:30]} 21. Rxd8 {[%emt 0:00:19]} Rfxd8 {[%emt 0:00:06]} 22. b3 {[%emt 0:02:06]} Bc5 {[%emt 0:02:56]} 23. Qe1 {[%emt 0:00:43]} Bb4 {[%emt 0:04:24]} 24. Qxb4 {[%emt 0:09:20]} Bxe2 {[%emt 0:00:05]} 25. Rg1 {[%emt 0:00:24]} Rxc2 {[%emt 0:04:37]} 26. Qe7 {[%emt 0:00:25]} Rdc8 {[%emt 0:00:48]} 27. Qxe5 {[%emt 0:00:26]} R2c5 {[%emt 0:00:09]} 28. Qd6 {[%emt 0:01:05]} h6 {[%emt 0:02:06]} 29. h3 {[%emt 0:01:20]} Rc2 {[%emt 0:05:38]} 30. a4 {[%emt 0:01:16]} a5 {[%emt 0:08:06]} 31. Re1 {[%emt 0:00:44]} R8c3 {[%emt 0:03:20]} 32. Qe5 {[%emt 0:01:36]} Rc5 {[%emt 0:00:42]} 33. Qe8+ {[%emt 0:07:06]} Kh7 {[%emt 0:00:04]} 34. Qxf7 {[%emt 0:00:18]} Rg5 {[%emt 0:00:50]} 35. Rg1 {[%emt 0:01:34]} Ng3+ {[%emt 0:00:50]} 36. Kh2 {[%emt 0:00:01]} Nf1+ {[%emt 0:00:20]} 37. Kh1 {[%emt 0:00:01]} Ng3+ {[%emt 0:01:44]} 38. Kh2 {[%emt 0:00:03]} Nf1+ {[%emt 0:01:49]} 39. Kh1 {[%emt 0:00:01]} Ne3 {[%emt 0:00:08]} 40. Qf4 {[%emt 0:00:00]} Nf1 {[%emt 0:00:00]} 41. e5 {[%emt 0:09:13]} Bd3 {[%emt 0:02:05]} 42. e6 {[%emt 0:10:24]} Ng3+ {[%emt 0:12:07]} 43. Kh2 {[%emt 0:00:10]} Re2 {[%emt 0:05:46]} 44. Qd6 {[%emt 0:03:02]} Nf1+ {[%emt 0:07:48]} 45. Kh1 {[%emt 0:00:51]} Ng3+ {[%emt 0:00:21]} 46. Kh2 {[%emt 0:00:05]} Nf1+ {[%emt 0:01:00]} 47. Kh1 {[%emt 0:00:03]} 1/2-1/2